fUSD/lending_fUSD_20250911
["ID","MTS","AMOUNT","RATE_DAILY","PERIOD"]
[384883544,1757615434313,-400.0,0.00027397,7]
[384883545,1757615434322,-253.12575713,0.00027397,2]
[384883546,1757615434331,-659.36,0.00027397,7]
[384883547,1757615434340,-404.07016897,0.00027397,7]
[384883548,1757615434349,-400.0,0.00027397,7]
[384883549,1757615434358,-400.0,0.00027397,7]
[384883550,1757615434367,-400.0,0.00027397,7]
[384883551,1757615434377,-500.0,0.00027397,7]
[384883552,1757615434386,-400.0,0.00027397,7]
[384883553,1757615434395,-400.0,0.00027397,7]
[384883554,1757615434404,-400.0,0.00027397,7]
[384883555,1757615434414,-500.0,0.00027397,7]
[384883556,1757615434424,-500.0,0.00027397,7]
[384883557,1757615434434,-414.54,0.00027397,7]
[384883558,1757615434447,-151.0,0.00027397,7]
[384883559,1757615434457,-500.0,0.00027397,7]
[384883560,1757615434466,-402.58538532,0.00027397,7]
[384883561,1757615434476,-400.0,0.00027397,7]
[384883562,1757615434488,-400.0,0.00027397,7]
[384883563,1757615434498,-400.0,0.00027397,7]
[384883564,1757615434507,-400.0,0.00027397,7]
[384883565,1757615434517,-400.0,0.00027397,7]
[384883566,1757615434527,-402.10388451,0.00027397,7]
[384883567,1757615434537,-400.0,0.00027397,7]
[384883568,1757615434547,-400.0,0.00027397,7]
[384883569,1757615434557,-400.0,0.00027397,7]
[384883570,1757615434566,-400.0,0.00027397,7]
[384883571,1757615434575,-403.12985949,0.00027397,7]
[384883572,1757615434585,-1240.96,0.00027397,7]
[384883573,1757615434595,-400.0,0.00027397,7]
[384883574,1757615434605,-400.0,0.00027397,7]
[384883575,1757615434614,-400.0,0.00027397,7]
[384883576,1757615434628,-560.77,0.00027397,7]
[384883577,1757615434639,-400.0,0.00027397,7]
[384883578,1757615434649,-897.5,0.00027397,7]
[384883579,1757615434659,-400.85661334,0.00027397,7]
[384883580,1757615434669,-400.0,0.00027397,7]
[384883581,1757615434678,-400.0,0.00027397,7]
[384883582,1757615434688,-400.0,0.00027397,7]
[384883583,1757615434697,-400.0,0.00027397,7]
[384883584,1757615434709,-400.0,0.00027397,7]
[384883585,1757615434719,-500.0,0.00027397,7]
[384883586,1757615434729,-400.0,0.00027397,7]
[384883587,1757615434738,-1322.61,0.00027397,7]
[384883588,1757615434747,-400.0,0.00027397,7]
[384883589,1757615434757,-400.0,0.00027397,7]
[384883590,1757615434766,-589.24,0.00027397,7]
[384883591,1757615434775,-400.0,0.00027397,7]
[384883592,1757615434786,-667.88,0.00027397,7]
[384883593,1757615434795,-506.77,0.00027397,7]
[384883594,1757615434806,-400.0,0.00027397,7]
[384883595,1757615434815,-865.35,0.00027397,7]
[384883596,1757615434825,-402.53706939,0.00027397,7]
[384883597,1757615434834,-400.0,0.00027397,7]
[384883598,1757615434844,-400.0,0.00027397,7]
[384883599,1757615434853,-181.80463153,0.00027397,7]
[384883600,1757615434863,-400.0,0.00027397,7]
[384883601,1757615434873,-400.0,0.00027397,7]
[384883602,1757615434883,-400.0,0.00027397,7]
[384883603,1757615434893,-1542.36,0.00027397,7]
[384883604,1757615435168,-731.6,0.00027397,7]
[384883605,1757615435179,-400.0,0.00027397,7]
[384883606,1757615435189,-470.87,0.00027397,7]
[384883607,1757615435201,-369.47732261,0.00027397,7]
[384883608,1757615435211,-400.0,0.00027397,7]
[384883609,1757615435220,-618.06,0.00027397,7]
[384883610,1757615435231,-448.56,0.00027397,7]
[384883611,1757615435241,-400.0,0.00027397,7]
[384883612,1757615435252,-400.0,0.00027397,7]
[384883613,1757615435262,-400.0,0.00027397,7]
[384883614,1757615435271,-400.0,0.00027397,7]
[384883615,1757615435281,-400.0,0.00027397,7]
[384883616,1757615435290,-632.69,0.00027397,7]
[384883617,1757615435300,-400.0,0.00027397,7]
[384883618,1757615435310,-400.0,0.00027397,7]
[384883619,1757615435320,-400.0,0.00027397,7]
[384883620,1757615435329,-958.58,0.00027397,7]
[384883621,1757615435340,-400.0,0.00027397,7]
[384883622,1757615435349,-1062.12,0.00027397,7]
[384883623,1757615435359,-1363.55,0.00027397,7]
[384883624,1757615435369,-400.0,0.00027397,7]
[384883625,1757615435378,-400.0,0.00027397,7]
[384883626,1757615435389,-400.0,0.00027397,7]
[384883627,1757615435399,-400.0,0.00027397,7]
[384883628,1757615435409,-400.0,0.00027397,7]
[384883629,1757615435419,-967.33,0.00027397,7]
[384883630,1757615435430,-2059.28,0.00027397,7]
[384883631,1757615435442,-400.0,0.00027397,7]
[384883632,1757615435453,-400.0,0.00027397,7]
[384883633,1757615435462,-1770.13,0.00027397,7]
[384883634,1757615435472,-151.0,0.00027397,7]
[384883635,1757615435482,-400.0,0.00027397,7]
[384883636,1757615435494,-1213.98,0.00027397,7]
[384883637,1757615435504,-400.0,0.00027397,7]
[384883638,1757615435515,-400.0,0.00027397,7]
[384883639,1757615435525,-400.0,0.00027397,7]
[384883640,1757615435537,-400.0,0.00027397,7]
[384883641,1757615435548,-607.45,0.00027397,7]
[384883642,1757615435558,-706.31,0.00027397,7]
[384883643,1757615435569,-1122.87,0.00027397,7]
[384883644,1757615435578,-400.0,0.00027397,7]
[384883645,1757615435588,-803.68,0.00027397,7]
[384883646,1757615435597,-400.0,0.00027397,7]
[384883647,1757615435607,-400.0,0.00027397,7]
[384883648,1757615435617,-400.0,0.00027397,7]
[384883649,1757615435626,-1623.34,0.00027397,7]
[384883650,1757615435636,-400.0,0.00027397,7]
[384883651,1757615435646,-400.0,0.00027397,7]
[384883652,1757615435655,-400.0,0.00027397,7]
[384883653,1757615435665,-400.0,0.00027397,7]
[384883654,1757615435674,-400.0,0.00027397,7]
[384883655,1757615435683,-400.0,0.00027397,7]
[384883656,1757615435693,-400.0,0.00027397,7]
[384883657,1757615435703,-866.54,0.00027397,7]
[384883658,1757615435712,-400.0,0.00027397,7]
[384883659,1757615435722,-400.0,0.00027397,7]
[384883660,1757615435731,-951.12,0.00027397,7]
[384883661,1757615435741,-400.0,0.00027397,7]
[384883662,1757615435750,-400.0,0.00027397,7]
[384883663,1757615435760,-400.0,0.00027397,7]
[384883664,1757615435769,-707.04,0.00027397,7]
[384883665,1757615435778,-400.0,0.00027397,7]
[384883666,1757615435788,-557.03,0.00027397,7]
[384883667,1757615435797,-1073.44,0.00027397,7]
[384883668,1757615435807,-400.0,0.00027397,7]
[384883669,1757615435816,-400.0,0.00027397,7]
[384883670,1757615435826,-677.58,0.00027397,7]
[384883671,1757615435836,-400.0,0.00027397,7]
[384883672,1757615435845,-400.0,0.00027397,7]
[384883673,1757615435854,-400.0,0.00027397,7]
[384883674,1757615435864,-1506.95,0.00027397,7]
[384883675,1757615435873,-1011.35,0.00027397,7]
[384883676,1757615435882,-400.0,0.00027397,7]
[384883677,1757615435891,-400.0,0.00027397,7]
[384883678,1757615435901,-400.0,0.00027397,7]
[384883679,1757615435911,-400.0,0.00027397,7]
[384883680,1757615435920,-2683.14,0.00027397,7]
[384883681,1757615435930,-637.07,0.00027397,7]
[384883682,1757615435939,-400.0,0.00027397,7]
[384883683,1757615435948,-400.0,0.00027397,7]
[384883684,1757615435957,-1485.28,0.00027397,7]
[384883685,1757615435967,-400.0,0.00027397,7]
[384883686,1757615435976,-493.38,0.00027397,7]
[384883687,1757615435985,-400.0,0.00027397,7]
[384883688,1757615435994,-400.0,0.00027397,7]
[384883689,1757615436003,-1138.76,0.00027397,7]
[384883690,1757615436012,-400.0,0.00027397,7]
[384883691,1757615436021,-400.0,0.00027397,7]
[384883692,1757615436030,-400.0,0.00027397,7]
[384883693,1757615436039,-400.0,0.00027397,7]
[384883694,1757615436049,-690.59,0.00027397,7]
[384883695,1757615436058,-400.0,0.00027397,7]
[384883696,1757615436067,-400.0,0.00027397,7]
[384883697,1757615436077,-400.0,0.00027397,7]
[384883698,1757615436086,-1543.96,0.00027397,7]
[384883699,1757615436095,-915.33,0.00027397,7]
[384883700,1757615436105,-400.0,0.00027397,7]
[384883701,1757615436113,-2229.2,0.00027397,7]
[384883702,1757615436122,-400.0,0.00027397,7]
[384883703,1757615436131,-400.0,0.00027397,7]
[384883704,1757615436140,-404.30800778,0.00027397,7]
[384883705,1757615436149,-400.0,0.00027397,7]
[384883706,1757615436159,-767.27,0.00027397,7]
[384883707,1757615436168,-666.15,0.00027397,7]
[384883708,1757615436177,-2134.62,0.00027397,7]
[384883709,1757615436187,-2493.84,0.00027397,7]
[384883710,1757615436196,-435.1,0.00027397,7]
[384883711,1757615436205,-400.0,0.00027397,7]
[384883712,1757615436214,-400.0,0.00027397,7]
[384883713,1757615436223,-400.0,0.00027397,7]
[384883714,1757615436233,-400.0,0.00027397,7]
[384883715,1757615436241,-406.10313299,0.00027397,7]
[384883716,1757615436250,-400.0,0.00027397,7]
[384883717,1757615436259,-400.0,0.00027397,7]
[384883718,1757615436268,-492.75,0.00027397,7]
[384883719,1757615436277,-1358.46,0.00027397,7]
[384883720,1757615436287,-2127.19,0.00027397,7]
[384883721,1757615436296,-2334.37,0.00027397,7]
[384883722,1757615436305,-400.0,0.00027397,7]
[384883723,1757615436314,-400.0,0.00027397,7]
[384883724,1757615436323,-405.22197139,0.00027397,7]
[384883725,1757615436333,-400.0,0.00027397,7]
[384883726,1757615436342,-461.25,0.00027397,7]
[384883727,1757615436350,-1580.87,0.00027397,7]
[384883728,1757615436359,-400.0,0.00027397,7]
[384883729,1757615436369,-606.04,0.00027397,7]
[384883730,1757615436378,-400.0,0.00027397,7]
[384883731,1757615436387,-400.0,0.00027397,7]
[384883732,1757615436396,-500.0,0.00027397,7]
[384883733,1757615436405,-500.0,0.00027397,7]
[384883734,1757615436414,-1003.06,0.00027397,7]
[384883735,1757615436423,-500.0,0.00027397,7]
[384883736,1757615436433,-400.0,0.00027397,7]
[384883737,1757615436446,-500.0,0.00027397,7]
[384883738,1757615436455,-400.0,0.00027397,7]
[384883739,1757615436464,-325.93733026,0.00027397,7]
[384883740,1757615436473,-400.0,0.00027397,7]
[384883741,1757615436483,-457.79,0.00027397,7]
[384883742,1757615436493,-400.0,0.00027397,7]
[384883743,1757615436502,-631.16,0.00027397,7]
[384883744,1757615436511,-400.0,0.00027397,7]
[384883745,1757615436521,-156.34023609,0.00027397,2]
[384883746,1757615436531,-151.0,0.00027397,2]
[384883747,1757615436540,-400.0,0.00027397,7]
[384883748,1757615436549,-400.0,0.00027397,7]
[384883749,1757615436558,-400.0,0.00027397,7]
[384883750,1757615436567,-400.0,0.00027397,7]
[384883751,1757615436577,-400.0,0.00027397,7]
[384883752,1757615436586,-1858.45,0.00027397,7]
[384883753,1757615436596,-400.0,0.00027397,7]
[384883754,1757615436605,-400.0,0.00027397,7]
[384883755,1757615436614,-400.0,0.00027397,7]
[384883756,1757615436623,-400.0,0.00027397,7]
[384883757,1757615436632,-1924.86,0.00027397,7]
[384883758,1757615436641,-150.0,0.00027397,7]
[384883759,1757615436650,-400.0,0.00027397,7]
[384883760,1757615436660,-256.08057526,0.00027397,7]
[384883764,1757615437462,-143.91942474,0.00027397,7]
[384883765,1757615437472,-150.0,0.00027397,7]
[384883766,1757615437482,-400.0,0.00027397,7]
[384883767,1757615437491,-400.0,0.00027397,7]
[384883768,1757615437501,-150.0,0.00027397,7]
[384883769,1757615437510,-533.84316586,0.00027397,7]
[384883770,1757615437526,-461.50683414,0.00027397,7]
[384883771,1757615437535,-28.01969859,0.00027397,7]
[384883772,1757615437546,-993.82977677,0.00027397,7]
[384883773,1757615437609,-942.38052464,0.00027397,7]
[384883774,1757615437618,-400.0,0.00027397,7]
[384883775,1757615437628,-635.76,0.00027397,7]
[384883776,1757615437637,-500.0,0.00027397,7]
[384883777,1757615437646,-400.0,0.00027397,7]
[384883778,1757615437656,-917.93,0.00027397,7]
[384883779,1757615437666,-400.0,0.00027397,7]
[384883780,1757615437675,-420.52,0.00027397,7]
[384883781,1757615437684,-1098.24,0.00027397,7]
[384883782,1757615437694,-500.0,0.00027397,7]
[384883783,1757615437703,-482.98,0.00027397,7]
[384883785,1757615437712,-297.98058016,0.00027397,7]
[384883787,1757615437722,-500.0,0.00027397,7]
[384883789,1757615437731,-200.13511492,0.00027397,7]
[384883790,1757615437741,-768.39,0.00027397,7]
[384883791,1757615437750,-196.12487057,0.00027397,7]
[384883941,1757615439448,-168.11299736,0.00027296,2]
[384883944,1757615439458,-1635.48583322,0.00027388,2]
[384884020,1757615440256,-2793.71786816,0.000244,5]
[384884022,1757615440268,-1774.28213184,0.000244,5]
[384884024,1757615440278,-1458.09366432,0.00027388,2]
[384884026,1757615440288,-683.86490454,0.00027393,2]
[384884033,1757615440360,-3430.27801453,0.00027393,2]
[384884036,1757615440373,-52.85708093,0.00027393,2]
[384884037,1757615440383,-6170.0,0.00027393,2]
[384884039,1757615440392,-5729.64787056,0.00027397,2]
[384884041,1757615440401,-13077.34569825,0.00027397,5]
[384884044,1757615440417,-5129.71441029,0.00027397,5]
[384884047,1757615440442,-5837.58565891,0.00027397,5]
[384884049,1757615440456,-665.23,0.00027397,5]
[384884051,1757615440467,-327.0836,0.00027397,5]
[384884054,1757615440491,-303.9436627,0.00027397,5]
[384884059,1757615440534,-1104.80047542,0.00027397,5]
[384884235,1757615442366,-952.04447236,0.00027397,5]
[384884267,1757615442646,-8928.54769937,0.00027397,5]
[384884269,1757615442662,-4686.32964663,0.00027397,5]
[384884284,1757615442784,-1338.89025357,0.00027397,5]
[384884286,1757615442799,-461.412428,0.00027397,5]
[384884482,1757615445389,-545.20000003,0.00027297,2]
[384884483,1757615445401,-316.29695651,0.00027297,2]
[384884484,1757615445410,-725.0,0.00027393,2]
[384884485,1757615445425,-2571.43752346,0.00027397,5]
[384884486,1757615445437,-905.7299986,0.00027397,5]
[384884487,1757615445514,-290.57475712,0.00027397,5]
[384884488,1757615445540,-769.71230875,0.00027397,5]
[384884493,1757615445597,-390.43581403,0.00027397,5]
[384884495,1757615445609,-6011.18731583,0.00027397,5]
[384884501,1757615445653,-743.7,0.00027397,5]
[384884503,1757615445665,-1602.70830084,0.00027397,5]
[384884505,1757615445677,-1064.8319108,0.00027397,5]
[384884516,1757615445767,-5990.63528658,0.00027397,5]
[384884518,1757615445779,-7839.29618145,0.00027397,5]
[384884521,1757615445792,-11425.0,0.00027397,5]
[384884725,1757615522319,999.0,0.0003013,120]
[384884726,1757615525194,888.0,0.0003013,120]
[384884727,1757615572898,261.0,0.0003013,120]
[384884749,1757615733508,-150.96,0.00022151,2]
[384884751,1757615744255,-150.96,0.00021854,2]
[384884752,1757615758075,-150.21080891,0.00021532,2]
[384884754,1757615789420,-150.96,0.00021323,2]
[384884764,1757615804360,-149.0,0.0002124,2]
[384884765,1757615804383,-2.0,0.0002124,2]
[384884766,1757615827946,-151.0,0.0002124,2]
[384884767,1757615827967,-0.04,0.00021323,2]
[384884768,1757615827989,-18.08403557,0.00021424,2]
[384884769,1757615829644,-132.91596443,0.00021424,2]
[384884770,1757615829666,-44.98228965,0.00023365,2]
[384884771,1757615831141,-183.87163721,0.00023365,2]
[384884772,1757615833846,-71.14607314,0.00023365,2]
[384884773,1757615833873,-72.31652146,0.00023365,2]
[384884774,1757615833914,-77.68347854,0.00023365,2]
[384884775,1757615856912,-151.0,0.00021106,2]
[384884779,1757615990716,150.96,0.00012991,2]
[384884781,1757616086861,200.0,0.00012926,2]
[384884785,1757616251041,184.48,0.00016438,2]
[384884786,1757616252688,-173.52926501,0.00022783,2]
[384884787,1757616255547,-10.95073499,0.00022783,2]
[384884793,1757616536903,1500.0,0.00024743,120]
[384884794,1757616617672,-188.2537714,0.000237,5]
[384884795,1757616618758,-134.7462286,0.000237,5]
[384884801,1757616631796,-300.0,0.00024632,2]
[384884802,1757616631806,-1200.0,0.00024632,2]
[384884803,1757616631816,-150.0,0.00024633,2]
[384884804,1757616631826,-150.0,0.00024633,2]
[384884805,1757616631836,-150.0,0.00024633,2]
[384884806,1757616631846,-150.0,0.00024633,2]
[384884807,1757616631856,-150.0,0.00024633,2]
[384884808,1757616631866,-150.0,0.00024633,2]
[384884809,1757616631875,-150.0,0.00024633,2]
[384884810,1757616631885,-150.0,0.00024633,2]
[384884811,1757616631894,-150.0,0.00024633,2]
[384884812,1757616631904,-150.0,0.00024633,2]
[384884813,1757616631914,-150.0,0.00024633,2]
[384884814,1757616631924,-150.0,0.00024633,2]
[384884815,1757616631934,-184.07,0.00024658,2]
[384884816,1757616631945,-150.0,0.00024684,2]
[384884817,1757616631955,-182.75,0.00024743,2]
[384884818,1757616631964,-4550.97786065,0.000249,2]
[384884819,1757616631973,-3577.1,0.00024941,2]
[384884820,1757616631983,-5051.6039466,0.00025,2]
[384884821,1757616631994,-257.91778498,0.00025292,2]
[384884822,1757616632004,-8882.6885148,0.00025292,2]
[384884823,1757616632013,-250.0,0.00025346,2]
[384884824,1757616632022,-9211.34798985,0.00025347,2]
[384884825,1757616632032,-9552.16786547,0.00025402,2]
[384884826,1757616632042,-9905.5980765,0.00025457,2]
[384884827,1757616632052,-10272.10520533,0.00025512,2]
[384884828,1757616632061,-116441.38,0.00025546,2]
[384884829,1757616632070,-200.0,0.00025554,2]
[384884830,1757616632079,-10652.17309792,0.00025567,2]
[384884831,1757616632089,-381.3,0.00025579,2]
[384884832,1757616632098,-617.95596413,0.00025622,2]
[384884833,1757616632107,-172.27,0.00025625,2]
[384884834,1757616632116,-1703.74,0.00025649,2]
[384884835,1757616632125,-264.0,0.000257,2]
[384884836,1757616632135,-165.87,0.00025805,2]
[384884837,1757616632144,-314.17,0.00025898,2]
[384884838,1757616632153,-150.0,0.00025942,7]
[384884839,1757616632162,-150.96,0.00025983,2]
[384884840,1757616632171,-5000.0,0.00026,2]
[384884841,1757616632180,-150.0,0.00026001,4]
[384884842,1757616632189,-150.0,0.00026001,4]
[384884843,1757616632199,-150.0,0.00026001,4]
[384884844,1757616632208,-208.22,0.0002607,2]
[384884845,1757616632217,-666.0,0.00026161,3]
[384884846,1757616632227,-150.0,0.0002618,2]
[384884847,1757616632236,-500.0,0.00026268,2]
[384884848,1757616632245,-500.0,0.00026268,2]
[384884849,1757616632254,-500.0,0.00026268,2]
[384884850,1757616632264,-500.0,0.00026268,2]
[384884851,1757616632274,-500.0,0.00026268,2]
[384884852,1757616632284,-151.0,0.00026268,2]
[384884853,1757616632294,-500.0,0.00026268,2]
[384884854,1757616632303,-500.0,0.00026268,2]
[384884855,1757616632313,-151.0,0.00026268,2]
[384884856,1757616632323,-500.0,0.00026268,2]
[384884857,1757616632332,-151.0,0.00026268,2]
[384884858,1757616632342,-151.0,0.00026268,2]
[384884859,1757616632352,-500.0,0.00026268,2]
[384884860,1757616632360,-151.0,0.00026268,2]
[384884861,1757616632370,-417.03889197,0.00026268,2]
[384884862,1757616632379,-151.0,0.00026268,2]
[384884863,1757616632388,-151.0,0.00026268,2]
[384884865,1757616632398,-151.0,0.00026268,2]
[384884866,1757616632409,-151.0,0.00026268,2]
[384884867,1757616632418,-151.0,0.00026268,2]
[384884868,1757616632427,-151.0,0.00026268,2]
[384884869,1757616632435,-17151.78,0.00026284,2]
[384884870,1757616632445,-200.0,0.00026339,2]
[384884871,1757616632454,-182.75,0.00026351,7]
[384884872,1757616632464,-250.0,0.00026363,2]
[384884873,1757616632474,-292.7,0.00026393,2]
[384884874,1757616632485,-597.72311841,0.00026438,7]
[384884875,1757616632495,-267.46074303,0.00026661,2]
[384884876,1757616632504,-420.0,0.00026695,2]
[384884877,1757616632513,-1680.0,0.00026816,2]
[384884878,1757616632522,-179.78,0.00026869,2]
[384884879,1757616632531,-259.0,0.0002688,2]
[384884880,1757616632540,-158.08745863,0.000269,2]
[384884881,1757616632550,-164.0,0.00027,7]
[384884882,1757616632559,-150.0,0.00027,7]
[384884883,1757616632569,-174.0,0.00027034,2]
[384884884,1757616632579,-160.0,0.0002711,2]
[384884885,1757616632588,-515.37529716,0.0002711,2]
[384884886,1757616632598,-88.50171777,0.00027115,2]
[384884887,1757616632631,-85.49828223,0.00027115,2]
[384884888,1757616632640,-174.0,0.00027132,2]
[384884889,1757616632650,-443.48888409,0.00027187,2]
[384884890,1757616632665,-2819.5996358,0.00027187,2]
[384884891,1757616632674,-180.4003642,0.0002726,2]
[384884896,1757616638589,-192.60090162,0.0002494,2]
[384884897,1757616638599,-166.7722233,0.0002494,2]
[384884898,1757616638607,-2107.5239764,0.0002726,2]
[384884900,1757616639827,-975.16417927,0.0002726,2]
[384884901,1757616639837,-151.0,0.00027273,7]
[384884902,1757616639846,-25.38068844,0.00027276,2]
[384884903,1757616639933,-43768.46769758,0.00027276,2]
[384884904,1757616640276,-1114.725,0.00027276,2]
[384884905,1757616640287,-12265.29310211,0.00027276,2]
[384884954,1757616642709,-83978.99835647,0.00027276,2]
[384884955,1757616642719,-151.0,0.00027276,7]
[384884956,1757616642728,-151.0,0.00027276,7]
[384884957,1757616642737,-151.0,0.00027276,7]
[384884958,1757616642746,-151.0,0.00027276,7]
[384884959,1757616642755,-151.0,0.00027276,7]
[384884960,1757616642764,-151.0,0.00027276,7]
[384884961,1757616642774,-151.0,0.00027276,7]
[384884962,1757616642783,-151.0,0.00027276,7]
[384884963,1757616642792,-151.0,0.00027276,7]
[384884964,1757616642801,-155.219424,0.00027276,7]
[384884965,1757616642810,-151.0,0.00027276,7]
[384884966,1757616642819,-151.0,0.00027276,7]
[384884967,1757616642828,-419.323,0.00027287,16]
[384884968,1757616642838,-610.68017493,0.00027287,2]
[384884969,1757616642847,-165.534198,0.00027297,2]
[384884970,1757616642856,-11051.35433455,0.000273,5]
[384884971,1757616642868,-3539.6471818,0.000273,5]
[384884972,1757616642904,-5817.895026,0.000273,5]
[384884973,1757616642970,-1668.45,0.000273,5]
[384884974,1757616642982,-560.47152291,0.000273,5]
[384885004,1757616645963,-756.23100168,0.000273,5]
[384886003,1757616707137,197.8,0.00026394,120]
[384886004,1757616707385,197.8,0.00029694,120]
[384886060,1757617509229,166.03,0.00016438,2]
[384886064,1757617528304,-163.936103,0.00022783,2]
[384886097,1757617826295,243.23,0.00025949,120]
[384886098,1757617826580,243.23,0.00029192,120]
[384886109,1757617832096,-2.093897,0.00022783,2]
[384886110,1757617832106,-324.3861389,0.00024165,2]
[384886111,1757617832115,-1200.0,0.00024632,2]
[384886112,1757617832124,-150.0,0.00024633,2]
[384886113,1757617832134,-150.0,0.00024633,2]
[384886114,1757617832143,-150.0,0.00024633,2]
[384886115,1757617832151,-150.0,0.00024633,2]
[384886116,1757617832161,-150.0,0.00024633,2]
[384886117,1757617832170,-150.0,0.00024633,2]
[384886118,1757617832179,-150.0,0.00024633,2]
[384886119,1757617832189,-150.0,0.00024633,2]
[384886120,1757617832198,-184.07,0.00024658,2]
[384886121,1757617832207,-164.0,0.000248,5]
[384886122,1757617832216,-4422.83850761,0.000249,2]
[384886123,1757617832225,-515.37529716,0.00025813,2]
[384886124,1757617832234,-212.89373682,0.00025818,2]
[384886125,1757617832243,-1176.0,0.00026298,2]
[384886126,1757617832253,-897.0,0.00026298,2]
[384886127,1757617832262,-222.46843525,0.00026333,2]
[384886128,1757617832437,-455.23217681,0.00026333,2]
[384886129,1757617832450,-787.61415302,0.00026333,2]
[384886130,1757617832462,-1205.27523492,0.00026333,2]
[384886131,1757617832471,-369.79,0.00026359,2]
[384886132,1757617832480,-1964.33476508,0.00026359,10]
[384886135,1757617832586,-599.68191506,0.00026359,10]
[384886138,1757617832609,-9584.48331986,0.00026359,10]
[384886140,1757617832618,-150.99,0.00026359,2]
[384886142,1757617832628,-5320.81,0.00026359,2]
[384886144,1757617832637,-1221.46,0.00026359,2]
[384886146,1757617832647,-515.37529716,0.00026359,10]
[384886148,1757617832656,-250.0,0.00026367,2]
[384886150,1757617832665,-150.0,0.00026377,7]
[384886152,1757617832676,-202.43,0.00026377,2]
[384886154,1757617832686,-164.12,0.00026381,2]
[384886156,1757617832695,-208.22,0.00026386,2]
[384886158,1757617832704,-400.0,0.00026438,7]
[384886160,1757617832713,-263.0,0.000265,2]
[384886162,1757617832723,-1680.0,0.00026816,2]
[384886164,1757617832732,-20968.0,0.00026933,2]
[384886166,1757617832741,-4167.0,0.00026933,2]
[384886168,1757617832751,-1325.815,0.00026933,2]
[384886170,1757617832763,-150.0,0.00027,7]
[384886172,1757617832772,-441.96,0.00027,2]
[384886174,1757617832782,-1000.0,0.00027123,7]
[384886176,1757617832791,-1000.0,0.00027123,7]
[384886178,1757617832800,-1000.0,0.00027123,7]
[384886180,1757617832809,-1000.0,0.00027123,7]
[384886182,1757617832819,-1000.0,0.00027123,7]
[384886184,1757617832828,-651.2003913,0.00027123,7]
[384886186,1757617832839,-348.7996087,0.00027123,7]
[384886188,1757617832849,-1000.0,0.00027123,7]
[384886190,1757617832858,-1000.0,0.00027123,7]
[384886192,1757617832867,-1000.0,0.00027123,7]
[384886194,1757617832877,-1456.50792874,0.00027123,7]
[384886196,1757617832886,-515.37529716,0.00027123,7]
[384886198,1757617832895,-415.708,0.00027176,15]
[384886200,1757617832905,-1000.0,0.00027188,2]
[384886202,1757617832914,-13387.29891932,0.00027259,2]
[384886539,1757617838042,-463.951,0.00026933,2]
[384886540,1757617838051,-41.72309097,0.00027259,2]
[384886541,1757617838095,-1000.00000002,0.00027259,2]
[384886542,1757617838256,-1461.85746947,0.00027259,2]
[384886570,1757617840467,-3165.54369616,0.00027259,2]
[384886571,1757617840483,-1385.78138237,0.00027259,2]
[384886572,1757617840494,-7400.1448194,0.00027259,2]
[384886577,1757617840524,-546.60834834,0.00027259,2]
[384886582,1757617840549,-339.77774386,0.00027259,2]